fUSD/lending_fUSD_20250108
["ID","MTS","AMOUNT","RATE_DAILY","PERIOD"]
[348076705,1736295052831,-1183.93,0.00010097,2]
[348076706,1736295052841,-500.0,0.00010097,2]
[348076707,1736295052850,-500.22,0.00010097,2]
[348076708,1736295052859,-609.7,0.00010097,2]
[348076709,1736295052870,-1484.49,0.00010097,2]
[348076710,1736295052879,-500.0,0.00010097,2]
[348076711,1736295052889,-500.0,0.00010097,2]
[348076712,1736295052899,-500.0,0.00010097,2]
[348076713,1736295052909,-500.0,0.00010097,2]
[348076714,1736295052919,-500.0,0.00010097,2]
[348076715,1736295052928,-1267.42,0.00010098,2]
[348076716,1736295052938,-692.26,0.00010098,2]
[348076717,1736295052947,-500.0,0.00010098,2]
[348076718,1736295052956,-500.0,0.00010098,2]
[348076719,1736295052965,-500.0,0.00010098,2]
[348076720,1736295052976,-548.22,0.00010098,2]
[348076721,1736295052985,-500.0,0.00010098,2]
[348076722,1736295052995,-500.0,0.00010098,2]
[348076723,1736295053004,-500.0,0.00010098,2]
[348076724,1736295053013,-549.94,0.00010098,2]
[348076725,1736295053023,-760.1,0.00010098,2]
[348076726,1736295053033,-649.67,0.00010098,2]
[348076727,1736295053042,-1273.41,0.00010098,2]
[348076728,1736295053052,-3086.54,0.00010098,2]
[348076729,1736295053062,-607.04,0.00010098,2]
[348076730,1736295053073,-500.0,0.00010098,2]
[348076731,1736295053083,-500.0,0.00010098,2]
[348076732,1736295053092,-1500.93,0.00010098,2]
[348076733,1736295053102,-500.0,0.00010098,2]
[348076734,1736295053111,-596.56,0.00010098,2]
[348076735,1736295053121,-207.88722328,0.000101,2]
[348076736,1736295053130,-544.26,0.00010137,2]
[348076737,1736295053139,-150.0,0.00010171,2]
[348076738,1736295053149,-1173.0,0.00010171,2]
[348076739,1736295053158,-3894.0,0.00010171,2]
[348076740,1736295053168,-6960.878,0.00010171,2]
[348076741,1736295053179,-1103.0,0.00010171,2]
[348076742,1736295053189,-500.0,0.00010172,2]
[348076743,1736295053201,-500.0,0.00010173,2]
[348076744,1736295053211,-489.41,0.00010173,2]
[348076745,1736295053221,-500.0,0.00010173,2]
[348076746,1736295053231,-500.0,0.00010173,2]
[348076747,1736295053240,-500.0,0.00010173,2]
[348076748,1736295053249,-500.0,0.00010173,2]
[348076749,1736295053258,-405.74147714,0.00010173,2]
[348076750,1736295053267,-255.0,0.00010201,2]
[348076751,1736295053277,-831.07,0.00010258,2]
[348076752,1736295053286,-500.0,0.00010258,2]
[348076753,1736295053295,-1148.17,0.00010258,2]
[348076754,1736295053304,-688.86,0.00010258,2]
[348076755,1736295053313,-703.21,0.00010258,2]
[348076756,1736295053324,-611.39,0.00010258,2]
[348076757,1736295053333,-1692.47,0.00010258,2]
[348076758,1736295053342,-783.23,0.00010258,2]
[348076759,1736295053353,-1156.54,0.00010258,2]
[348076760,1736295053363,-666.47,0.00010258,2]
[348076761,1736295053374,-500.0,0.00010258,2]
[348076762,1736295053383,-692.78,0.00010258,2]
[348076763,1736295053393,-155.80627653,0.00010271,2]
[348076764,1736295053403,-1769.68542531,0.00010271,2]
[348076765,1736295053414,-207.88722328,0.000103,2]
[348076766,1736295053424,-150.0,0.00010349,2]
[348076767,1736295053435,-150.0,0.00010349,2]
[348076768,1736295053444,-2014.0,0.00010349,2]
[348076769,1736295053453,-1267.0,0.00010349,2]
[348076770,1736295053463,-634.0,0.00010349,2]
[348076771,1736295053472,-566.0,0.00010349,2]
[348076772,1736295053482,-150.0,0.00010349,2]
[348076773,1736295053490,-1860.0,0.00010349,2]
[348076774,1736295053500,-916.0,0.00010349,2]
[348076775,1736295053509,-1258.0,0.00010349,2]
[348076776,1736295053518,-3776.0,0.00010349,2]
[348076777,1736295053529,-819.0,0.00010349,2]
[348076778,1736295053539,-3976.0,0.00010349,2]
[348076779,1736295053549,-537.0,0.00010349,2]
[348076780,1736295053559,-836.79,0.0001037,2]
[348076781,1736295053570,-1046.36,0.0001037,2]
[348076782,1736295053580,-3547.13,0.0001037,2]
[348076783,1736295053591,-500.0,0.0001037,2]
[348076784,1736295053600,-500.0,0.0001037,2]
[348076785,1736295053610,-500.0,0.0001037,2]
[348076786,1736295053621,-645.08,0.0001037,2]
[348076787,1736295053632,-1000.81,0.0001037,2]
[348076788,1736295053642,-950.33,0.0001037,2]
[348076789,1736295053651,-1798.15,0.0001037,2]
[348076790,1736295053660,-1612.63,0.0001037,2]
[348076791,1736295053669,-779.65,0.0001037,2]
[348076792,1736295053678,-822.85,0.0001037,2]
[348076793,1736295053687,-634.08,0.0001037,2]
[348076794,1736295053697,-500.0,0.0001037,2]
[348076795,1736295053706,-567.83,0.0001037,2]
[348076796,1736295053715,-1701.91,0.0001037,2]
[348076797,1736295053725,-1042.63,0.0001037,2]
[348076798,1736295053735,-655.17,0.0001037,2]
[348076799,1736295053745,-627.87,0.0001037,2]
[348076800,1736295053755,-749.63,0.0001037,2]
[348076801,1736295053765,-552.51,0.0001037,2]
[348076802,1736295053775,-500.0,0.0001037,2]
[348076803,1736295053784,-759.41,0.0001037,2]
[348076804,1736295053794,-532.98,0.0001037,2]
[348076805,1736295053804,-500.0,0.0001037,2]
[348076806,1736295053813,-500.0,0.0001037,2]
[348076807,1736295053825,-643.42,0.0001037,2]
[348076808,1736295053834,-500.0,0.0001037,2]
[348076809,1736295053845,-722.86,0.0001037,2]
[348076810,1736295053854,-2163.24,0.0001037,2]
[348076811,1736295053864,-1254.51,0.00010371,2]
[348076812,1736295053873,-942.19,0.00010371,2]
[348076813,1736295053883,-681.67,0.00010371,2]
[348076814,1736295053893,-523.745524,0.00010371,2]
[348076815,1736295053903,-520.946511,0.00010371,2]
[348076816,1736295053913,-1885.19,0.00010371,2]
[348076817,1736295053924,-500.0,0.00010371,2]
[348076818,1736295053933,-500.0,0.00010371,2]
[348076819,1736295053943,-500.0,0.00010371,2]
[348076820,1736295053952,-500.0,0.00010371,2]
[348076821,1736295053962,-508.68,0.00010371,2]
[348076822,1736295053971,-364.35752185,0.00010371,2]
[348076823,1736295053980,-500.0,0.00010371,2]
[348076824,1736295053990,-500.0,0.00010371,2]
[348076825,1736295053999,-500.0,0.00010371,2]
[348076826,1736295054009,-1307.28,0.00010371,2]
[348076827,1736295054018,-182.43851234,0.00010371,2]
[348076828,1736295054027,-500.0,0.00010371,2]
[348076829,1736295054036,-500.0,0.00010371,2]
[348076830,1736295054046,-500.0,0.00010371,2]
[348076831,1736295054055,-500.0,0.00010371,2]
[348076832,1736295054063,-500.0,0.00010371,2]
[348076833,1736295054074,-506.67,0.00010371,2]
[348076834,1736295054084,-500.0,0.00010371,2]
[348076835,1736295054093,-500.0,0.00010371,2]
[348076836,1736295054102,-500.0,0.00010371,2]
[348076837,1736295054114,-500.0,0.00010371,2]
[348076838,1736295054124,-500.0,0.00010371,2]
[348076839,1736295054134,-500.0,0.00010371,2]
[348076840,1736295054143,-500.0,0.00010371,2]
[348076841,1736295054153,-500.0,0.00010371,2]
[348076842,1736295054163,-500.0,0.00010371,2]
[348076843,1736295054173,-500.0,0.00010371,2]
[348076844,1736295054183,-500.0,0.00010371,2]
[348076845,1736295054192,-500.0,0.00010371,2]
[348076846,1736295054201,-612.4,0.00010371,2]
[348076847,1736295054212,-500.0,0.00010371,2]
[348076848,1736295054221,-500.0,0.00010371,2]
[348076849,1736295054231,-528.19,0.00010371,2]
[348076850,1736295054239,-500.0,0.00010371,2]
[348076851,1736295054249,-500.0,0.00010371,2]
[348076852,1736295054258,-500.0,0.00010371,2]
[348076853,1736295054267,-500.0,0.00010371,2]
[348076854,1736295054276,-500.0,0.00010371,2]
[348076855,1736295054286,-500.0,0.00010371,2]
[348076856,1736295054296,-500.0,0.00010371,2]
[348076857,1736295054308,-500.0,0.00010371,2]
[348076858,1736295054320,-500.0,0.00010371,2]
[348076859,1736295054329,-500.0,0.00010371,2]
[348076860,1736295054339,-500.0,0.00010371,2]
[348076861,1736295054348,-500.0,0.00010371,2]
[348076862,1736295054357,-533.0,0.00010371,2]
[348076863,1736295054367,-500.0,0.00010371,2]
[348076864,1736295054377,-500.0,0.00010371,2]
[348076865,1736295054386,-500.0,0.00010371,2]
[348076866,1736295054396,-500.0,0.00010371,2]
[348076867,1736295054405,-500.0,0.00010371,2]
[348076868,1736295054415,-551.49,0.00010371,2]
[348076869,1736295054425,-500.0,0.00010371,2]
[348076870,1736295054434,-500.0,0.00010371,2]
[348076871,1736295054444,-500.0,0.00010371,2]
[348076872,1736295054453,-500.0,0.00010371,2]
[348076873,1736295054462,-500.0,0.00010371,2]
[348076874,1736295054471,-500.0,0.00010371,2]
[348076875,1736295054481,-500.0,0.00010371,2]
[348076876,1736295054491,-500.0,0.00010371,2]
[348076877,1736295054500,-402.67,0.00010371,2]
[348076878,1736295054510,-500.0,0.00010371,2]
[348076879,1736295054519,-500.0,0.00010371,2]
[348076880,1736295054530,-500.0,0.00010371,2]
[348076881,1736295054539,-500.0,0.00010371,2]
[348076882,1736295054548,-500.0,0.00010371,2]
[348076883,1736295054557,-500.0,0.00010371,2]
[348076884,1736295054566,-500.0,0.00010371,2]
[348076885,1736295054576,-500.0,0.00010371,2]
[348076886,1736295054585,-500.0,0.00010371,2]
[348076887,1736295054595,-500.0,0.00010371,2]
[348076888,1736295054605,-500.0,0.00010371,2]
[348076889,1736295054617,-500.0,0.00010371,2]
[348076890,1736295054627,-504.15,0.00010371,2]
[348076891,1736295054639,-500.0,0.00010371,2]
[348076892,1736295054649,-500.0,0.00010371,2]
[348076893,1736295054658,-500.0,0.00010371,2]
[348076894,1736295054667,-500.0,0.00010371,2]
[348076895,1736295054677,-500.0,0.00010371,2]
[348076896,1736295054688,-609.99,0.00010371,2]
[348076897,1736295054697,-500.0,0.00010371,2]
[348076898,1736295054707,-500.0,0.00010371,2]
[348076899,1736295054716,-500.0,0.00010371,2]
[348076900,1736295054725,-500.0,0.00010371,2]
[348076901,1736295054735,-500.0,0.00010371,2]
[348076902,1736295054745,-500.0,0.00010371,2]
[348076903,1736295054759,-500.0,0.00010371,2]
[348076904,1736295054768,-548.82,0.00010371,2]
[348076905,1736295054777,-500.0,0.00010371,2]
[348076906,1736295054786,-539.9,0.00010371,2]
[348076907,1736295054797,-500.0,0.00010371,2]
[348076908,1736295054806,-500.0,0.00010371,2]
[348076909,1736295054815,-500.0,0.00010371,2]
[348076910,1736295054825,-500.0,0.00010371,2]
[348076911,1736295054836,-558.02,0.00010371,2]
[348076912,1736295054845,-767.91,0.00010371,2]
[348076913,1736295054855,-500.0,0.00010371,2]
[348076914,1736295054864,-648.0,0.00010371,2]
[348076915,1736295054873,-500.0,0.00010371,2]
[348076916,1736295054883,-500.0,0.00010371,2]
[348076917,1736295054893,-500.0,0.00010371,2]
[348076918,1736295054902,-500.0,0.00010371,2]
[348076919,1736295054912,-506.45,0.00010371,2]
[348076920,1736295054922,-500.0,0.00010371,2]
[348076921,1736295054931,-608.13,0.00010371,2]
[348076922,1736295054940,-500.0,0.00010371,2]
[348076923,1736295054950,-500.0,0.00010371,2]
[348076924,1736295054959,-500.0,0.00010371,2]
[348076925,1736295054969,-500.0,0.00010371,2]
[348076926,1736295054979,-500.0,0.00010371,2]
[348076927,1736295054989,-500.0,0.00010371,2]
[348076928,1736295054999,-500.0,0.00010371,2]
[348076929,1736295055009,-500.0,0.00010371,2]
[348076930,1736295055020,-500.0,0.00010371,2]
[348076931,1736295055029,-500.0,0.00010371,2]
[348076932,1736295055039,-500.0,0.00010371,2]
[348076933,1736295055048,-989.92,0.00010371,2]
[348076934,1736295055058,-620.85333536,0.00010371,2]
[348076935,1736295055068,-500.0,0.00010371,2]
[348076936,1736295055077,-500.0,0.00010371,2]
[348076937,1736295055086,-616.28,0.00010371,2]
[348076938,1736295055096,-189.3385124,0.00010371,2]
[348076939,1736295055105,-500.0,0.00010371,2]
[348076940,1736295055117,-500.0,0.00010371,2]
[348076941,1736295055127,-1046.88,0.00010371,2]
[348076942,1736295055138,-500.0,0.00010371,2]
[348076943,1736295055149,-500.0,0.00010371,2]
[348076944,1736295055159,-500.0,0.00010371,2]
[348076945,1736295055170,-500.0,0.00010371,2]
[348076946,1736295055179,-500.0,0.00010371,2]
[348076947,1736295055188,-500.0,0.00010371,2]
[348076948,1736295055198,-1000.0,0.00010371,2]
[348076949,1736295055207,-730.04,0.00010371,2]
[348076950,1736295055217,-2570.46,0.00010371,2]
[348076951,1736295055226,-500.0,0.00010371,2]
[348076952,1736295055235,-500.0,0.00010371,2]
[348076953,1736295055244,-673.79,0.00010371,2]
[348076954,1736295055254,-500.0,0.00010371,2]
[348076955,1736295055263,-500.0,0.00010371,2]
[348076956,1736295055272,-500.0,0.00010371,2]
[348076957,1736295055281,-500.0,0.00010371,2]
[348076958,1736295055291,-500.0,0.00010371,2]
[348076959,1736295055301,-1463.01,0.00010371,2]
[348076960,1736295055310,-1754.48,0.00010371,2]
[348076961,1736295055322,-500.0,0.00010371,2]
[348076962,1736295055331,-500.0,0.00010371,2]
[348076963,1736295055341,-500.0,0.00010371,2]
[348076964,1736295055350,-500.0,0.00010371,2]
[348076965,1736295055359,-500.0,0.00010371,2]
[348076966,1736295055369,-500.0,0.00010371,2]
[348076967,1736295055378,-500.0,0.00010371,2]
[348076968,1736295055387,-500.0,0.00010371,2]
[348076969,1736295055397,-1866.42,0.00010371,2]
[348076970,1736295055407,-500.0,0.00010371,2]
[348076971,1736295055416,-1236.86,0.00010371,2]
[348076972,1736295055426,-500.0,0.00010371,2]
[348076973,1736295055437,-500.0,0.00010371,2]
[348076974,1736295055446,-626.78,0.00010371,2]
[348076975,1736295055455,-500.0,0.00010371,2]
[348076976,1736295055466,-500.0,0.00010371,2]
[348076977,1736295055475,-374.11978281,0.00010371,2]
[348076978,1736295055485,-1347.36,0.00010371,2]
[348076979,1736295055496,-500.0,0.00010371,2]
[348076980,1736295055507,-500.0,0.00010371,2]
[348076981,1736295055517,-500.0,0.00010371,2]
[348076982,1736295055528,-500.0,0.00010371,2]
[348076983,1736295055538,-500.0,0.00010371,2]
[348076984,1736295055549,-500.0,0.00010371,2]
[348076985,1736295055559,-548.1280879,0.00010371,2]
[348076986,1736295055570,-1183.93,0.00010371,2]
[348076987,1736295055579,-500.0,0.00010371,2]
[348076988,1736295055588,-500.22,0.00010371,2]
[348076989,1736295055597,-609.7,0.00010371,2]
[348076990,1736295055606,-1484.49,0.00010371,2]
[348076991,1736295055615,-500.0,0.00010371,2]
[348076992,1736295055624,-500.0,0.00010371,2]
[348076993,1736295055634,-500.0,0.00010371,2]
[348076994,1736295055645,-1267.42,0.00010372,2]
[348076995,1736295055654,-692.26,0.00010372,2]
[348076996,1736295055664,-500.0,0.00010372,2]
[348076997,1736295055675,-500.0,0.00010372,2]
[348076998,1736295055685,-500.0,0.00010372,2]
[348076999,1736295055695,-500.0,0.00010372,2]
[348077000,1736295055704,-500.0,0.00010372,2]
[348077001,1736295055714,-500.0,0.00010372,2]
[348077002,1736295055724,-549.94,0.00010372,2]
[348077003,1736295055733,-760.1,0.00010372,2]
[348077004,1736295055742,-649.67,0.00010372,2]
[348077005,1736295055755,-1273.41,0.00010372,2]
[348077006,1736295055765,-3086.54,0.00010372,2]
[348077007,1736295055775,-607.04,0.00010372,2]
[348077008,1736295055784,-500.0,0.00010372,2]
[348077009,1736295055794,-500.0,0.00010372,2]
[348077010,1736295055805,-1500.93,0.00010372,2]
[348077011,1736295055814,-500.0,0.00010372,2]
[348077012,1736295055827,-596.56,0.00010372,2]
[348077013,1736295055836,-8146.18683733,0.00010408,2]
[348077014,1736295055845,-1400.75,0.00010418,2]
[348077015,1736295055855,-500.0,0.00010447,2]
[348077016,1736295055864,-346.57042852,0.00010447,2]
[348077017,1736295055873,-223.84044848,0.00010447,2]
[348077018,1736295055882,-500.0,0.00010447,2]
[348077019,1736295055892,-500.0,0.00010447,2]
[348077020,1736295055902,-207.88722328,0.000105,2]
[348077021,1736295055912,-831.07,0.00010532,2]
[348077022,1736295055921,-500.0,0.00010532,2]
[348077023,1736295055931,-1148.17,0.00010532,2]
[348077024,1736295055941,-688.86,0.00010532,2]
[348077025,1736295055950,-703.21,0.00010532,2]
[348077026,1736295055959,-611.39,0.00010532,2]
[348077027,1736295055969,-1692.47,0.00010532,2]
[348077028,1736295055978,-783.23,0.00010532,2]
[348077029,1736295055988,-1156.54,0.00010532,2]
[348077030,1736295056130,-666.47,0.00010532,2]
[348077031,1736295056157,-500.0,0.00010532,2]
[348077032,1736295056167,-692.78,0.00010532,2]
[348077033,1736295056176,-155.80627653,0.00010547,2]
[348077034,1736295056186,-1769.68542531,0.00010593,2]
[348077035,1736295056196,-343.06955377,0.00010612,2]
[348077036,1736295056205,-150.0,0.00010627,2]
[348077037,1736295056214,-150.0,0.00010627,2]
[348077038,1736295056223,-150.0,0.00010627,2]
[348077039,1736295056233,-150.0,0.00010627,2]
[348077040,1736295056242,-150.0,0.00010627,2]
[348077041,1736295056251,-262.08922209,0.00010627,2]
[348077042,1736295056260,-150.0,0.00010627,2]
[348077043,1736295056270,-836.79,0.00010644,2]
[348077044,1736295056279,-1046.36,0.00010644,2]
[348077045,1736295056288,-3547.13,0.00010644,2]
[348077046,1736295056297,-500.0,0.00010644,2]
[348077047,1736295056308,-500.0,0.00010644,2]
[348077048,1736295056317,-645.08,0.00010644,2]
[348077049,1736295056329,-1000.81,0.00010644,2]
[348077050,1736295056339,-950.33,0.00010644,2]
[348077051,1736295056351,-1798.15,0.00010644,2]
[348077052,1736295056361,-1612.63,0.00010644,2]
[348077053,1736295056371,-779.65,0.00010644,2]
[348077054,1736295056381,-822.85,0.00010644,2]
[348077055,1736295056391,-634.08,0.00010644,2]
[348077056,1736295056400,-500.0,0.00010644,2]
[348077057,1736295056409,-567.83,0.00010644,2]
[348077058,1736295056418,-1701.91,0.00010644,2]
[348077059,1736295056428,-1042.63,0.00010644,2]
[348077060,1736295056438,-655.17,0.00010644,2]
[348077061,1736295056448,-627.87,0.00010644,2]
[348077062,1736295056458,-749.63,0.00010644,2]
[348077063,1736295056468,-552.51,0.00010644,2]
[348077064,1736295056477,-500.0,0.00010644,2]
[348077065,1736295056486,-759.41,0.00010644,2]
[348077066,1736295056495,-532.98,0.00010644,2]
[348077067,1736295056504,-500.0,0.00010644,2]
[348077068,1736295056513,-643.42,0.00010644,2]
[348077069,1736295056522,-500.0,0.00010644,2]
[348077070,1736295056532,-722.86,0.00010644,2]
[348077071,1736295056541,-2163.24,0.00010644,2]
[348077072,1736295056551,-1254.51,0.00010645,2]
[348077073,1736295056561,-942.19,0.00010645,2]
[348077074,1736295056571,-681.67,0.00010645,2]
[348077075,1736295056580,-523.745524,0.00010645,2]
[348077076,1736295056589,-520.946511,0.00010645,2]
[348077077,1736295056599,-1885.19,0.00010645,2]
[348077078,1736295056608,-500.0,0.00010645,2]
[348077079,1736295056619,-500.0,0.00010645,2]
[348077080,1736295056631,-500.0,0.00010645,2]
[348077081,1736295056641,-500.0,0.00010645,2]
[348077082,1736295056653,-508.68,0.00010645,2]
[348077083,1736295056663,-500.0,0.00010645,2]
[348077084,1736295056672,-500.0,0.00010645,2]
[348077085,1736295056682,-500.0,0.00010645,2]
[348077086,1736295056691,-1307.28,0.00010645,2]
[348077087,1736295056700,-500.0,0.00010645,2]
[348077088,1736295056710,-500.0,0.00010645,2]
[348077089,1736295056719,-500.0,0.00010645,2]
[348077090,1736295056729,-500.0,0.00010645,2]
[348077091,1736295056738,-511.99,0.00010645,2]
[348077092,1736295056751,-500.0,0.00010645,2]
[348077093,1736295056761,-500.0,0.00010645,2]
[348077094,1736295056771,-500.0,0.00010645,2]
[348077095,1736295056780,-500.0,0.00010645,2]
[348077096,1736295056789,-500.0,0.00010645,2]
[348077097,1736295056799,-500.0,0.00010645,2]
[348077098,1736295056808,-500.0,0.00010645,2]
[348077099,1736295056818,-500.0,0.00010645,2]
[348077100,1736295056833,-500.0,0.00010645,2]
[348077101,1736295056843,-612.4,0.00010645,2]
[348077102,1736295056852,-500.0,0.00010645,2]
[348077103,1736295056862,-500.0,0.00010645,2]
[348077104,1736295056871,-528.19,0.00010645,2]
[348077105,1736295056880,-500.0,0.00010645,2]
[348077106,1736295056889,-500.0,0.00010645,2]
[348077107,1736295056899,-500.0,0.00010645,2]
[348077108,1736295056910,-500.0,0.00010645,2]
[348077109,1736295056919,-500.0,0.00010645,2]
[348077110,1736295056929,-500.0,0.00010645,2]
[348077111,1736295056939,-500.0,0.00010645,2]
[348077112,1736295056949,-500.0,0.00010645,2]
[348077113,1736295056958,-500.0,0.00010645,2]
[348077114,1736295056967,-500.0,0.00010645,2]
[348077115,1736295056977,-500.0,0.00010645,2]
[348077116,1736295056986,-500.0,0.00010645,2]
[348077117,1736295056995,-533.0,0.00010645,2]
[348077118,1736295057005,-500.0,0.00010645,2]
[348077119,1736295057014,-500.0,0.00010645,2]
[348077120,1736295057024,-500.0,0.00010645,2]
[348077121,1736295057034,-500.0,0.00010645,2]
[348077122,1736295057043,-551.49,0.00010645,2]
[348077123,1736295057052,-492.0510349,0.00010645,2]
[348077124,1736295057062,-500.0,0.00010645,2]
[348077125,1736295057072,-500.0,0.00010645,2]
[348077126,1736295057082,-500.0,0.00010645,2]
[348077127,1736295057092,-500.0,0.00010645,2]
[348077128,1736295057101,-500.0,0.00010645,2]
[348077129,1736295057110,-500.0,0.00010645,2]
[348077130,1736295057119,-500.0,0.00010645,2]
[348077131,1736295057128,-500.0,0.00010645,2]
[348077132,1736295057137,-500.0,0.00010645,2]
[348077133,1736295057147,-573.87516671,0.00010645,2]
[348077134,1736295057158,-500.0,0.00010645,2]
[348077135,1736295057167,-500.0,0.00010645,2]
[348077136,1736295057176,-500.0,0.00010645,2]
[348077137,1736295057186,-500.0,0.00010645,2]
[348077138,1736295057196,-551.7279913,0.00010645,2]
[348077139,1736295057208,-500.0,0.00010645,2]
[348077140,1736295057218,-500.0,0.00010645,2]
[348077141,1736295057227,-500.0,0.00010645,2]
[348077142,1736295057237,-500.0,0.00010645,2]
[348077143,1736295057246,-500.0,0.00010645,2]
[348077144,1736295057256,-609.99,0.00010645,2]
[348077145,1736295057266,-500.0,0.00010645,2]
[348077146,1736295057276,-500.0,0.00010645,2]
[348077147,1736295057285,-500.0,0.00010645,2]
[348077148,1736295057295,-500.0,0.00010645,2]
[348077149,1736295057304,-548.82,0.00010645,2]
[348077150,1736295057313,-500.0,0.00010645,2]
[348077151,1736295057324,-539.9,0.00010645,2]
[348077152,1736295057333,-371.16146041,0.00010645,2]
[348077153,1736295057342,-500.0,0.00010645,2]
[348077154,1736295057352,-242.62482326,0.00010645,2]
[348077155,1736295057361,-500.0,0.00010645,2]
[348077156,1736295057370,-558.02,0.00010645,2]
[348077157,1736295057380,-767.91,0.00010645,2]
[348077158,1736295057389,-500.0,0.00010645,2]
[348077159,1736295057398,-648.0,0.00010645,2]
[348077160,1736295057408,-500.0,0.00010645,2]
[348077161,1736295057418,-500.0,0.00010645,2]
[348077162,1736295057427,-500.0,0.00010645,2]
[348077163,1736295057437,-500.0,0.00010645,2]
[348077164,1736295057446,-506.45,0.00010645,2]
[348077165,1736295057456,-500.0,0.00010645,2]
[348077166,1736295057466,-608.13,0.00010645,2]
[348077167,1736295057475,-500.0,0.00010645,2]
[348077168,1736295057485,-500.0,0.00010645,2]
[348077169,1736295057494,-500.0,0.00010645,2]
[348077170,1736295057503,-500.0,0.00010645,2]
[348077171,1736295057512,-500.0,0.00010645,2]
[348077172,1736295057521,-500.0,0.00010645,2]
[348077173,1736295057531,-500.0,0.00010645,2]
[348077174,1736295057540,-500.0,0.00010645,2]
[348077175,1736295057549,-500.0,0.00010645,2]
[348077176,1736295057559,-500.0,0.00010645,2]
[348077177,1736295057568,-500.0,0.00010645,2]
[348077178,1736295057579,-989.92,0.00010645,2]
[348077179,1736295057590,-500.0,0.00010645,2]
[348077180,1736295057600,-500.0,0.00010645,2]
[348077181,1736295057609,-616.28,0.00010645,2]
[348077182,1736295057618,-500.0,0.00010645,2]
[348077183,1736295057627,-500.0,0.00010645,2]
[348077184,1736295057637,-1046.88,0.00010645,2]
[348077185,1736295057647,-500.0,0.00010645,2]
[348077186,1736295057656,-500.0,0.00010645,2]
[348077187,1736295057666,-500.0,0.00010645,2]
[348077188,1736295057676,-500.0,0.00010645,2]
[348077189,1736295057685,-500.0,0.00010645,2]
[348077190,1736295057695,-500.0,0.00010645,2]
[348077191,1736295057706,-1000.0,0.00010645,2]
[348077192,1736295057716,-730.04,0.00010645,2]
[348077193,1736295057725,-2570.46,0.00010645,2]
[348077194,1736295057735,-500.0,0.00010645,2]
[348077195,1736295057745,-500.0,0.00010645,2]
[348077196,1736295057760,-673.79,0.00010645,2]
[348077197,1736295057769,-500.0,0.00010645,2]
[348077198,1736295057779,-500.0,0.00010645,2]
[348077199,1736295057788,-500.0,0.00010645,2]
[348077200,1736295057798,-500.0,0.00010645,2]
[348077201,1736295057807,-500.0,0.00010645,2]
[348077202,1736295057816,-1463.01,0.00010645,2]
[348077203,1736295057831,-1754.48,0.00010645,2]
[348077204,1736295057842,-500.0,0.00010645,2]